[Event "FIDE World School-ch G-17 2025"]
[Site "Vrnjacka Banja"]
[Date "2025.03.25"]
[Round "6.1"]
[White "Buyankhishig, Batpelden"]
[Black "Kusakina, Uliana"]
[Result "1-0"]
[Annotator "NA RC"]
[ECO "A00"]
[WhiteElo "1907"]
[BlackElo "1855"]
[PlyCount "181"]
[EventDate "2025.03.19"]
[EventType "swiss"]
[EventCountry "SRB"]
[SourceTitle "playchess.com"]
[Source "ChessBase"]
[SourceQuality "1"]
[TimeControl "5400+30"]

1. b4 {[%emt 0:02:22]} c6 {[%emt 0:00:06]} 2. c4 {[%emt 0:12:25]} d5 {[%emt 0:13:40]} 3. e3 {[%emt 0:03:10]} e5 {[%emt 0:02:02]} 4. Bb2 {[%emt 0:01:55]} Nd7 {[%emt 0:01:52]} 5. b5 {[%emt 0:09:30]} Ngf6 {[%emt 0:09:08]} 6. Nf3 {[%emt 0:02:32]} e4 {[%emt 0:02:37]} 7. Nd4 {[%emt 0:10:26]} c5 {[%emt 0:15:10]} 8. Nc2 {[%emt 0:04:42]} dxc4 {[%emt 0:07:21]} 9. Nba3 {[%emt 0:03:15]} Nb6 {[%emt 0:04:32]} 10. Nxc4 {[%emt 0:02:40]} Bf5 {[%emt 0:01:00]} 11. h3 {[%emt 0:03:51]} h6 {[%emt 0:02:49]} 12. a4 {[%emt 0:02:52]} Be7 {[%emt 0:01:38]} 13. a5 {[%emt 0:02:26]} Nxc4 {[%emt 0:00:16]} 14. Bxc4 {[%emt 0:00:07]} O-O {[%emt 0:00:52]} 15. O-O {[%emt 0:01:45]} Bg6 {[%emt 0:06:54]} 16. Ne1 {[%emt 0:04:18]} Qd7 {[%emt 0:04:15]} 17. d4 {[%emt 0:03:58]} cxd4 {[%emt 0:03:43]} 18. Bxd4 {[%emt 0:02:04]} Rfc8 {[%emt 0:02:33]} 19. Qa4 {[%emt 0:03:38]} Bh5 {[%emt 0:03:29]} 20. f3 {[%emt 0:07:44]} Qc7 {[%emt 0:01:03]} 21. Rc1 {[%emt 0:02:23]} Qg3 {[%emt 0:00:40]} 22. f4 {[%emt 0:07:07]} Rd8 {[%emt 0:04:32]} 23. Qc2 {[%emt 0:01:40]} Bb4 {[%emt 0:01:00]} 24. Qf2 {[%emt 0:01:34]} Qxf2+ {[%emt 0:04:17]} 25. Rxf2 {[%emt 0:01:12]} Bxa5 {[%emt 0:02:09]} 26. f5 {[%emt 0:01:11]} Bb6 {[%emt 0:03:13]} 27. Bxb6 {[%emt 0:01:45]} axb6 {[%emt 0:00:05]} 28. g4 {[%emt 0:00:15]} Bxg4 {[%emt 0:00:05]} 29. hxg4 {[%emt 0:00:07]} Nxg4 {[%emt 0:00:04]} 30. Re2 {[%emt 0:00:38]} Ra3 {[%emt 0:01:22]} 31. Ng2 {[%emt 0:01:06]} Ne5 {[%emt 0:01:07]} 32. Nf4 {[%emt 0:00:48]} Ng4 {[%emt 0:01:17]} 33. Nd5 {[%emt 0:00:37]} Kh7 {[%emt 0:00:31]} 34. Ra2 {[%emt 0:00:38]} Rxa2 {[%emt 0:01:09]} 35. Bxa2 {[%emt 0:00:01]} Ra8 {[%emt 0:00:21]} 36. Bb1 {[%emt 0:00:52]} Ra3 {[%emt 0:00:28]} 37. Bxe4 {[%emt 0:00:36]} Nxe3 {[%emt 0:00:10]} 38. Nxb6 {[%emt 0:00:33]} Rb3 {[%emt 0:00:23]} 39. Rb1 {[%emt 0:00:25]} Rxb1+ {[%emt 0:00:25]} 40. Bxb1 {[%emt 0:00:02]} g6 {[%emt 0:00:22]} 41. f6 {[%emt 0:00:49]} Nd1 {[%emt 0:00:48]} 42. Nd5 {[%emt 0:00:08]} Nb2 {[%emt 0:00:12]} 43. Kf2 {[%emt 0:01:10]} Nc4 {[%emt 0:00:06]} 44. Ke2 {[%emt 0:00:27]} h5 {[%emt 0:00:18]} 45. b6 {[%emt 0:00:21]} Kh6 {[%emt 0:00:23]} 46. Kd3 {[%emt 0:00:28]} Nd6 {[%emt 0:00:31]} 47. Kd4 {[%emt 0:00:19]} Kg5 {[%emt 0:00:08]} 48. Kc5 {[%emt 0:00:58]} Nc8 {[%emt 0:00:18]} 49. Be4 {[%emt 0:00:20]} h4 {[%emt 0:00:08]} 50. Kd4 {[%emt 0:00:07]} Nxb6 {[%emt 0:00:32]} 51. Nxb6 {[%emt 0:00:02]} Kxf6 {[%emt 0:00:10]} 52. Bxb7 {[%emt 0:00:01]} Kg5 {[%emt 0:00:19]} 53. Ke3 {[%emt 0:00:03]} Kg4 {[%emt 0:00:17]} 54. Kf2 {[%emt 0:00:19]} f5 {[%emt 0:00:21]} 55. Nc4 {[%emt 0:00:37]} Kf4 {[%emt 0:00:45]} 56. Nb2 {[%emt 0:00:26]} g5 {[%emt 0:01:10]} 57. Nd3+ {[%emt 0:00:20]} Kg4 {[%emt 0:00:07]} 58. Ne5+ {[%emt 0:02:17]} Kh5 {[%emt 0:00:17]} 59. Kf3 {[%emt 0:00:46]} g4+ {[%emt 0:01:40]} 60. Kf4 {[%emt 0:00:33]} h3 {[%emt 0:00:10]} 61. Bd5 {[%emt 0:00:41]} Kh4 {[%emt 0:00:35]} 62. Ng6+ {[%emt 0:00:16]} Kh5 {[%emt 0:00:05]} 63. Kxf5 {[%emt 0:00:42]} g3 {[%emt 0:00:09]} 64. Bf3+ {[%emt 0:00:11]} Kh6 {[%emt 0:00:08]} 65. Nf4 {[%emt 0:00:04]} h2 {[%emt 0:00:35]} 66. Kf6 {[%emt 0:00:20]} Kh7 {[%emt 0:00:17]} 67. Bd5 {[%emt 0:00:41]} h1=Q {[%emt 0:00:12]} 68. Bxh1 {[%emt 0:00:04]} g2 {[%emt 0:00:11]} 69. Bxg2 {[%emt 0:00:09]} Kh8 {[%emt 0:00:05]} 70. Ne6 {[%emt 0:00:30]} Kg8 {[%emt 0:00:06]} 71. Ng5 {[%emt 0:00:06]} Kh8 {[%emt 0:00:13]} 72. Nf7+ {[%emt 0:00:08]} Kg8 {[%emt 0:00:04]} 73. Be4 {[%emt 0:00:14]} Kf8 {[%emt 0:00:08]} 74. Bh7 {[%emt 0:00:04]} Ke8 {[%emt 0:00:05]} 75. Ne5 {[%emt 0:00:05]} Kd8 {[%emt 0:00:05]} 76. Ke6 {[%emt 0:03:16]} Kc7 {[%emt 0:00:08]} 77. Nd7 {[%emt 0:00:15]} Kc6 {[%emt 0:00:59]} 78. Bd3 {[%emt 0:00:13]} Kc7 {[%emt 0:00:08]} 79. Be4 {[%emt 0:00:42]} Kd8 {[%emt 0:00:19]} 80. Kd6 {[%emt 0:00:13]} Ke8 {[%emt 0:00:15]} 81. Bg6+ {[%emt 0:00:04]} Kd8 {[%emt 0:00:06]} 82. Bf7 {[%emt 0:00:13]} Kc8 {[%emt 0:00:04]} 83. Nc5 {[%emt 0:00:07]} Kd8 {[%emt 0:00:07]} 84. Nb7+ {[%emt 0:00:05]} Kc8 {[%emt 0:00:04]} 85. Kc6 {[%emt 0:00:04]} Kb8 {[%emt 0:00:04]} 86. Kb6 {[%emt 0:00:09]} Kc8 {[%emt 0:00:09]} 87. Be6+ {[%emt 0:00:03]} Kb8 {[%emt 0:00:06]} 88. Nc5 {[%emt 0:00:19]} Ka8 {[%emt 0:00:05]} 89. Bd7 {[%emt 0:00:08]} Kb8 {[%emt 0:00:04]} 90. Na6+ {[%emt 0:00:03]} Ka8 {[%emt 0:00:06]} 91. Bc6# {[%emt 0:00:02]} 1-0

[Event "FIDE World School-ch G-17 2025"]
[Site "Vrnjacka Banja"]
[Date "2025.03.25"]
[Round "6.2"]
[White "Altynbek, Aiaru"]
[Black "Seyhan, Pelin"]
[Result "0-1"]
[Annotator "NA RC"]
[ECO "D35"]
[WhiteElo "2005"]
[BlackElo "1924"]
[PlyCount "152"]
[EventDate "2025.03.19"]
[EventType "swiss"]
[EventCountry "SRB"]
[SourceTitle "playchess.com"]
[Source "ChessBase"]
[SourceQuality "1"]
[TimeControl "5400+30"]

1. d4 {[%emt 0:00:04]} Nf6 {[%emt 0:00:07]} 2. Nf3 {[%emt 0:00:22]} d5 {[%emt 0:00:29]} 3. c4 {[%emt 0:00:10]} e6 {[%emt 0:00:05]} 4. Nc3 {[%emt 0:00:22]} Nbd7 {[%emt 0:00:06]} 5. Bf4 {[%emt 0:00:30]} Bb4 {[%emt 0:00:59]} 6. cxd5 {[%emt 0:00:21]} exd5 {[%emt 0:00:08]} 7. Qc2 {[%emt 0:00:22]} O-O {[%emt 0:03:58]} 8. e3 {[%emt 0:00:36]} c5 {[%emt 0:02:23]} 9. Be2 {[%emt 0:02:48]} Qa5 {[%emt 0:11:24]} 10. O-O {[%emt 0:04:18]} c4 {[%emt 0:04:54]} 11. Nd2 {[%emt 0:15:50]} Re8 {[%emt 0:08:30]} 12. Bf3 {[%emt 0:03:37]} Nf8 {[%emt 0:08:22]} 13. a3 {[%emt 0:18:17]} Bxc3 {[%emt 0:02:44]} 14. bxc3 {[%emt 0:00:10]} Ng6 {[%emt 0:02:04]} 15. Bg3 {[%emt 0:02:05]} Bd7 {[%emt 0:07:23]} 16. Rfe1 {[%emt 0:03:40]} Bc6 {[%emt 0:05:38]} 17. Qb2 {[%emt 0:06:06]} h5 {[%emt 0:02:55]} 18. h3 {[%emt 0:02:19]} Re6 {[%emt 0:03:26]} 19. Bd1 {[%emt 0:02:05]} h4 {[%emt 0:07:45]} 20. Bh2 {[%emt 0:00:15]} Rae8 {[%emt 0:00:23]} 21. Bc2 {[%emt 0:00:57]} Nh5 {[%emt 0:02:26]} 22. Nf3 {[%emt 0:05:55]} Rf6 {[%emt 0:08:58]} 23. Bxg6 {[%emt 0:03:04]} Rxg6 {[%emt 0:01:13]} 24. Nxh4 {[%emt 0:01:17]} Rh6 {[%emt 0:00:31]} 25. Nf5 {[%emt 0:02:45]} Rg6 {[%emt 0:01:02]} 26. Re2 {[%emt 0:10:08]} Qd8 {[%emt 0:02:15]} 27. Ng3 {[%emt 0:02:00]} Nxg3 {[%emt 0:02:09]} 28. Bxg3 {[%emt 0:00:10]} Qg5 {[%emt 0:00:07]} 29. Ree1 {[%emt 0:02:53]} Kh7 {[%emt 0:02:16]} 30. Qe2 {[%emt 0:01:08]} Bd7 {[%emt 0:02:12]} 31. Qf3 {[%emt 0:00:52]} Rf6 {[%emt 0:00:19]} 32. Bf4 {[%emt 0:01:34]} Qg6 {[%emt 0:01:41]} 33. Kh2 {[%emt 0:02:21]} Rh8 {[%emt 0:01:31]} 34. Rg1 {[%emt 0:03:17]} Be6 {[%emt 0:01:49]} 35. g4 {[%emt 0:01:20]} Kg8 {[%emt 0:00:27]} 36. Qg3 {[%emt 0:00:44]} Qc2 {[%emt 0:00:35]} 37. Rac1 {[%emt 0:01:04]} Qe2 {[%emt 0:00:30]} 38. Kg2 {[%emt 0:01:01]} Rg6 {[%emt 0:01:02]} 39. Rge1 {[%emt 0:00:38]} Qa2 {[%emt 0:00:32]} 40. Rh1 {[%emt 0:00:48]} Bf5 {[%emt 0:00:42]} 41. Ra1 {[%emt 0:00:47]} Be4+ {[%emt 0:00:16]} 42. Kh2 {[%emt 0:00:07]} Qd2 {[%emt 0:01:07]} 43. Rhc1 {[%emt 0:01:14]} Qe2 {[%emt 0:01:33]} 44. Re1 {[%emt 0:00:26]} Qd2 {[%emt 0:01:08]} 45. Rac1 {[%emt 0:00:30]} Rf6 {[%emt 0:00:27]} 46. g5 {[%emt 0:01:02]} Rb6 {[%emt 0:00:04]} 47. Kg1 {[%emt 0:00:28]} Rb2 {[%emt 0:00:26]} 48. h4 {[%emt 0:00:45]} Rc2 {[%emt 0:00:26]} 49. Rb1 {[%emt 0:00:31]} Rxc3 {[%emt 0:01:05]} 50. Rbd1 {[%emt 0:00:18]} Qb2 {[%emt 0:00:48]} 51. Bd6 {[%emt 0:00:41]} Rc2 {[%emt 0:00:43]} 52. Rb1 {[%emt 0:00:32]} Re2 {[%emt 0:00:16]} 53. Rbc1 {[%emt 0:00:35]} c3 {[%emt 0:00:32]} 54. Bb4 {[%emt 0:00:31]} c2 {[%emt 0:00:45]} 55. f3 {[%emt 0:00:31]} Rxe1+ {[%emt 0:00:51]} 56. Qxe1 {[%emt 0:00:02]} Bxf3 {[%emt 0:00:05]} 57. Bc3 {[%emt 0:01:06]} Qb3 {[%emt 0:00:15]} 58. Bb4 {[%emt 0:00:36]} Bd1 {[%emt 0:00:36]} 59. Qg3 {[%emt 0:00:14]} Qd3 {[%emt 0:00:24]} 60. Kh2 {[%emt 0:00:39]} Qe2+ {[%emt 0:00:07]} 61. Kh3 {[%emt 0:00:10]} Kh7 {[%emt 0:00:56]} 62. Qf4 {[%emt 0:00:23]} Re8 {[%emt 0:00:06]} 63. Qf5+ {[%emt 0:00:19]} Kg8 {[%emt 0:00:04]} 64. e4 {[%emt 0:00:26]} dxe4 {[%emt 0:01:02]} 65. g6 {[%emt 0:01:54]} Qf3+ {[%emt 0:01:03]} 66. Qxf3 {[%emt 0:00:00]} exf3 {[%emt 0:00:03]} 67. h5 {[%emt 0:00:00]} fxg6 {[%emt 0:00:04]} 68. hxg6 {[%emt 0:00:00]} Re6 {[%emt 0:00:07]} 69. Bc5 {[%emt 0:00:00]} Rxg6 {[%emt 0:00:27]} 70. d5 {[%emt 0:00:00]} b6 {[%emt 0:00:12]} 71. Bf2 {[%emt 0:00:00]} Kf7 {[%emt 0:00:03]} 72. Ra1 {[%emt 0:00:00]} Ke7 {[%emt 0:00:09]} 73. a4 {[%emt 0:00:00]} Kd6 {[%emt 0:00:06]} 74. a5 {[%emt 0:00:02]} Kxd5 {[%emt 0:00:04]} 75. a6 {[%emt 0:00:12]} Kc4 {[%emt 0:00:11]} 76. Ra4+ {[%emt 0:00:10]} Kb3 {[%emt 0:05:59]} 0-1

[Event "FIDE World School-ch G-17 2025"]
[Site "Vrnjacka Banja"]
[Date "2025.03.25"]
[Round "6.3"]
[White "Newansa, M Esandi"]
[Black "Wang, Chloe Heather"]
[Result "1/2-1/2"]
[Annotator "NA RC"]
[ECO "A48"]
[WhiteElo "1801"]
[BlackElo "1892"]
[PlyCount "49"]
[EventDate "2025.03.19"]
[EventType "swiss"]
[EventCountry "SRB"]
[SourceTitle "playchess.com"]
[Source "ChessBase"]
[SourceQuality "1"]
[TimeControl "5400+30"]

1. d4 {[%emt 0:00:56]} Nf6 {[%emt 0:00:27]} 2. Bf4 {[%emt 0:00:09]} g6 {[%emt 0:00:49]} 3. e3 {[%emt 0:00:07]} Bg7 {[%emt 0:00:08]} 4. Nf3 {[%emt 0:00:05]} d6 {[%emt 0:00:10]} 5. Be2 {[%emt 0:00:10]} Nh5 {[%emt 0:01:02]} 6. Bg5 {[%emt 0:00:26]} h6 {[%emt 0:00:25]} 7. Bh4 {[%emt 0:00:06]} g5 {[%emt 0:00:40]} 8. Nfd2 {[%emt 0:00:25]} Nf6 {[%emt 0:09:55]} 9. Bg3 {[%emt 0:00:10]} Nc6 {[%emt 0:06:00]} 10. c3 {[%emt 0:03:20]} e5 {[%emt 0:06:07]} 11. dxe5 {[%emt 0:10:59]} dxe5 {[%emt 0:08:06]} 12. Bf3 {[%emt 0:04:36]} Bd7 {[%emt 0:05:31]} 13. Nc4 {[%emt 0:06:57]} Qe7 {[%emt 0:09:30]} 14. Bxc6 {[%emt 0:09:56]} Bxc6 {[%emt 0:00:25]} 15. Nxe5 {[%emt 0:01:54]} Bxg2 {[%emt 0:01:37]} 16. Rg1 {[%emt 0:05:00]} Bd5 {[%emt 0:03:39]} 17. Qa4+ {[%emt 0:01:20]} Nd7 {[%emt 0:07:55]} 18. Nxd7 {[%emt 0:01:52]} Qxd7 {[%emt 0:00:58]} 19. Qxd7+ {[%emt 0:00:22]} Kxd7 {[%emt 0:00:04]} 20. Nd2 {[%emt 0:00:24]} Rad8 {[%emt 0:02:37]} 21. h4 {[%emt 0:05:41]} Kc8 {[%emt 0:05:02]} 22. a3 {[%emt 0:08:16]} f5 {[%emt 0:02:54]} 23. O-O-O {[%emt 0:02:28]} Bf6 {[%emt 0:02:45]} 24. hxg5 {[%emt 0:04:44]} hxg5 {[%emt 0:00:27]} 25. f3 {[%emt 0:00:25]} 1/2-1/2

[Event "FIDE World School-ch G-17 2025"]
[Site "Vrnjacka Banja"]
[Date "2025.03.25"]
[Round "6.4"]
[White "Kirtadze, Anastasia"]
[Black "Vojinovic, Anastasija"]
[Result "1-0"]
[Annotator "TA"]
[ECO "B90"]
[WhiteElo "2180"]
[BlackElo "1857"]
[PlyCount "51"]
[EventDate "2025.03.19"]
[EventType "swiss"]
[EventCountry "SRB"]
[SourceTitle "playchess.com"]
[Source "ChessBase"]
[SourceQuality "1"]
[TimeControl "5400+30"]

{[%evp 10,47,38,12,20,12,15,21,33,6,8,2,-14,9,133,124,125,91,250,247,356,375,368,362,648,657,637,577,2402,2164,29991,1069,29989,29990,29990,29991,29991,29992,29992,29993]} 1. e4 {[%emt 0:00:01]} c5 {[%emt 0:00:10]} 2. Nf3 {[%emt 0:00:05]} d6 {[%emt 0:00:16]} 3. d4 {[%emt 0:00:09]} cxd4 {[%emt 0:00:12]} 4. Nxd4 {[%emt 0:00:05]} Nf6 {[%emt 0:00:23]} 5. Nc3 {[%emt 0:00:05]} a6 {[%emt 0:00:07]} 6. Nb3 {[%emt 0:00:03]} e6 {[%emt 0:00:11]} 7. g4 {[%emt 0:00:05]} b5 {[%emt 0:01:06][%cal Bb7b5,Bb5b4][%mdl 32]} 8. Bg2 {[%emt 0:01:44][%cal Oe4e5]} Bb7 {[%emt 0:02:57] The position is equal.} 9. g5 {[%emt 0:00:22]} b4 {[%emt 0:03:31] [#]} 10. Nd5 {[%emt 0:00:42]} exd5 {[%emt 0:18:04]} 11. gxf6 {[%emt 0:00:05]} Qxf6 {[%emt 0:13:23]} (11... dxe4 $11 {keeps the balance.} 12. Qg4 Qxf6) 12. Na5 $16 {[%emt 0:13:14]} (12. exd5 Be7 $14) 12... Bc6 {[%emt 0:18:26]} 13. Be3 {[%emt 0:30:34] And now Nxc6 would win.} Qxb2 $2 {[%emt 0:22:06] [#] A mistake that costs the game.} (13... dxe4 14. Nxc6 Nxc6 15. Bxe4 $16) (13... Be7 $16) 14. O-O $1 $18 {[%emt 0:04:35]} (14. exd5 Bb5 $11) 14... Be7 {[%emt 0:10:43]} (14... dxe4 {is a better defense.} 15. Qg4 Bd5) 15. Nxc6 {[%emt 0:19:57]} ({Don't do} 15. exd5 Bb5 $18) 15... Nxc6 {[%emt 0:00:11]} 16. exd5 {[%emt 0:00:36]} (16. Qxd5 Rc8 $16) 16... Na5 {[%emt 0:03:23]} (16... Ne5 17. Bd4 Qa3 18. Bxe5 O-O) 17. Bd4 {[%emt 0:04:05] This pair of bishops is nice.} Qa3 {[%emt 0:00:06]} 18. Re1 {[%emt 0:01:43]} ({Less strong is} 18. Bxg7 Rg8 $16) 18... Rb8 {[%emt 0:03:06]} 19. Qg4 {[%emt 0:03:05][%cal Oe1e7] Rxe7+! would kill now.} Rg8 {[%emt 0:00:58]} 20. Re3 {[%emt 0:01:44]} (20. Bf6 $142 Nc4 21. Rxe7+ (21. Bxe7 Qc3 $18) 21... Kf8 22. Qd7 Qc1+ 23. Rxc1 Rh8 24. Rxf7+ Kg8 25. Rxg7+ Kf8 26. Qf7#) 20... Qa4 {[%emt 0:00:17]} 21. Rae1 {[%emt 0:00:12] ?ev?.} Qd7 {[%emt 0:00:50]} 22. Qxd7+ {[%emt 0:00:37]} Kxd7 {[%emt 0:00:07]} 23. Rxe7+ {[%emt 0:00:08]} Kd8 {[%emt 0:00:21]} 24. Bh3 {[%emt 0:00:15]} Rb7 {[%emt 0:00:40]} 25. Rxb7 {[%emt 0:00:25]} Nxb7 {[%emt 0:00:06]} 26. Bb6# {[%emt 0:00:03] Weighted Error Value: White=0.34/Black=1.62  Mistake:       	---       	Black=4      Inaccurate:     	White=1     	Black=1      OK:         	White=4     	Black=3      Best:        	White=1     	Black=1      Strong:       	White=1     	---} 1-0

[Event "FIDE World School-ch G-17 2025"]
[Site "Vrnjacka Banja"]
[Date "2025.03.25"]
[Round "6.5"]
[White "Maslova, Anastasiya Yar"]
[Black "Dukic, Teona"]
[Result "1-0"]
[Annotator "NA RC"]
[ECO "C54"]
[WhiteElo "1938"]
[BlackElo "1770"]
[PlyCount "101"]
[EventDate "2025.03.19"]
[EventType "swiss"]
[EventCountry "SRB"]
[SourceTitle "playchess.com"]
[Source "ChessBase"]
[SourceQuality "1"]
[TimeControl "5400+30"]

1. e4 {[%emt 0:00:03]} e5 {[%emt 0:00:05]} 2. Nf3 {[%emt 0:00:07]} Nc6 {[%emt 0:00:03]} 3. Bc4 {[%emt 0:00:09]} Bc5 {[%emt 0:00:06]} 4. c3 {[%emt 0:00:12]} Nf6 {[%emt 0:00:07]} 5. d4 {[%emt 0:00:08]} exd4 {[%emt 0:00:07]} 6. e5 {[%emt 0:00:10]} d5 {[%emt 0:00:39]} 7. Bb5 {[%emt 0:00:08]} Ne4 {[%emt 0:01:27]} 8. cxd4 {[%emt 0:00:08]} Bb6 {[%emt 0:02:16]} 9. Nc3 {[%emt 0:00:07]} O-O {[%emt 0:01:36]} 10. Be3 {[%emt 0:00:09]} Bf5 {[%emt 0:02:34]} 11. Qb3 {[%emt 0:07:06]} Ne7 {[%emt 0:04:31]} 12. O-O {[%emt 0:03:03]} h6 {[%emt 0:01:04]} 13. h3 {[%emt 0:06:17]} c6 {[%emt 0:05:03]} 14. Bd3 {[%emt 0:02:05]} Nd2 {[%emt 0:05:50]} 15. Nxd2 {[%emt 0:00:27]} Bxd3 {[%emt 0:00:10]} 16. Rfe1 {[%emt 0:01:13]} Bg6 {[%emt 0:05:18]} 17. Na4 {[%emt 0:06:29]} Nf5 {[%emt 0:01:46]} 18. Qc3 {[%emt 0:03:42]} Nxe3 {[%emt 0:02:53]} 19. Rxe3 {[%emt 0:01:07]} Re8 {[%emt 0:06:56]} 20. Nb3 {[%emt 0:08:53]} f6 {[%emt 0:05:00]} 21. f4 {[%emt 0:03:01]} fxe5 {[%emt 0:01:19]} 22. fxe5 {[%emt 0:00:27]} Rc8 {[%emt 0:01:22]} 23. Nac5 {[%emt 0:01:46]} Qe7 {[%emt 0:06:53]} 24. Rae1 {[%emt 0:10:35]} Bxc5 {[%emt 0:01:18]} 25. Qxc5 {[%emt 0:00:46]} b6 {[%emt 0:01:19]} 26. Qxe7 {[%emt 0:04:16]} Rxe7 {[%emt 0:00:12]} 27. Rc3 {[%emt 0:00:53]} a5 {[%emt 0:03:42]} 28. Rec1 {[%emt 0:04:50]} Rec7 {[%emt 0:03:10]} 29. a4 {[%emt 0:02:48]} Kf7 {[%emt 0:02:44]} 30. Kf2 {[%emt 0:04:35]} Ke6 {[%emt 0:01:43]} 31. Ke2 {[%emt 0:01:33]} Be4 {[%emt 0:01:30]} 32. g4 {[%emt 0:05:59]} Bg6 {[%emt 0:03:34]} 33. Ke3 {[%emt 0:02:20]} Be8 {[%emt 0:00:45]} 34. h4 {[%emt 0:02:52]} Rf7 {[%emt 0:08:58]} 35. Nd2 {[%emt 0:02:56]} Rfc7 {[%emt 0:00:29]} 36. Rb3 {[%emt 0:01:34]} Rb8 {[%emt 0:02:28]} 37. Nf3 {[%emt 0:01:32]} Rcb7 {[%emt 0:01:25]} 38. Ne1 {[%emt 0:01:55]} Rc7 {[%emt 0:04:26]} 39. Nd3 {[%emt 0:00:31]} g5 {[%emt 0:00:57]} 40. hxg5 {[%emt 0:01:32]} hxg5 {[%emt 0:00:09]} 41. Nc5+ {[%emt 0:00:38]} bxc5 {[%emt 0:02:39]} 42. Rxb8 {[%emt 0:00:07]} cxd4+ {[%emt 0:00:45]} 43. Kxd4 {[%emt 0:00:08]} Bd7 {[%emt 0:01:52]} 44. Rg8 {[%emt 0:01:49]} c5+ {[%emt 0:00:35]} 45. Rxc5 {[%emt 0:00:20]} Rxc5 {[%emt 0:00:06]} 46. Kxc5 {[%emt 0:00:22]} Kxe5 {[%emt 0:00:23]} 47. Rxg5+ {[%emt 0:00:11]} Kf6 {[%emt 0:01:13]} 48. Rxd5 {[%emt 0:00:07]} Bxa4 {[%emt 0:00:18]} 49. Kd4 {[%emt 0:00:16]} Bd1 {[%emt 0:00:19]} 50. g5+ {[%emt 0:00:05]} Kg6 {[%emt 0:00:14]} 51. Rxa5 {[%emt 0:00:04]} 1-0

[Event "FIDE World School-ch G-17 2025"]
[Site "Vrnjacka Banja"]
[Date "2025.03.25"]
[Round "6.6"]
[White "Engel, Ecrin Tuana"]
[Black "Nauanova Zhaniya"]
[Result "0-1"]
[Annotator "NA RC"]
[ECO "B07"]
[WhiteElo "1763"]
[BlackElo "1905"]
[PlyCount "74"]
[EventDate "2025.03.19"]
[EventType "swiss"]
[EventCountry "SRB"]
[SourceTitle "playchess.com"]
[Source "ChessBase"]
[SourceQuality "1"]
[TimeControl "5400+30"]

1. d4 {[%emt 0:00:05]} Nf6 {[%emt 0:00:05]} 2. Bf4 {[%emt 0:00:07]} g6 {[%emt 0:00:15]} 3. Nc3 {[%emt 0:00:08]} Bg7 {[%emt 0:00:12]} 4. e4 {[%emt 0:00:09]} d6 {[%emt 0:00:27]} 5. Qd2 {[%emt 0:00:45]} Nbd7 {[%emt 0:02:21]} 6. O-O-O {[%emt 0:04:10]} O-O {[%emt 0:02:47]} 7. f3 {[%emt 0:04:44]} a6 {[%emt 0:03:33]} 8. g4 {[%emt 0:03:06]} c5 {[%emt 0:07:51]} 9. dxc5 {[%emt 0:04:01]} Nxc5 {[%emt 0:03:18]} 10. e5 {[%emt 0:05:24]} Ne8 {[%emt 0:00:26]} 11. exd6 {[%emt 0:00:26]} Nxd6 {[%emt 0:00:32]} 12. Nge2 {[%emt 0:02:18]} Be6 {[%emt 0:07:03]} 13. Bxd6 {[%emt 0:14:46]} exd6 {[%emt 0:00:04]} 14. Nd4 {[%emt 0:00:24]} Qa5 {[%emt 0:09:32]} 15. a3 {[%emt 0:02:04]} Rac8 {[%emt 0:03:58]} 16. Kb1 {[%emt 0:03:41]} Na4 {[%emt 0:14:12]} 17. Nxa4 {[%emt 0:13:39]} Qxa4 {[%emt 0:00:05]} 18. Qb4 {[%emt 0:00:25]} Qxb4 {[%emt 0:06:46]} 19. axb4 {[%emt 0:01:07]} Bd5 {[%emt 0:01:23]} 20. Bg2 {[%emt 0:07:34]} Rfe8 {[%emt 0:04:14]} 21. c3 {[%emt 0:02:19]} Rcd8 {[%emt 0:08:18]} 22. Rhg1 {[%emt 0:06:23]} Be5 {[%emt 0:04:25]} 23. h4 {[%emt 0:01:43]} Bf4 {[%emt 0:05:13]} 24. Rh1 {[%emt 0:08:30]} Re5 {[%emt 0:02:00]} 25. h5 {[%emt 0:01:20]} Rde8 {[%emt 0:01:49]} 26. hxg6 {[%emt 0:00:46]} fxg6 {[%emt 0:00:17]} 27. b3 {[%emt 0:08:11]} Bf7 {[%emt 0:02:15]} 28. Bh3 {[%emt 0:00:35]} Re3 {[%emt 0:01:31]} 29. Kc2 {[%emt 0:01:26]} Be5 {[%emt 0:02:37]} 30. c4 {[%emt 0:03:07]} b5 {[%emt 0:05:49]} 31. Bf1 {[%emt 0:01:32]} Rc8 {[%emt 0:01:14]} 32. Kb1 {[%emt 0:00:59]} bxc4 {[%emt 0:01:10]} 33. bxc4 {[%emt 0:00:18]} Bxc4 {[%emt 0:00:22]} 34. Bxc4+ {[%emt 0:00:41]} Rxc4 {[%emt 0:00:03]} 35. Nc2 {[%emt 0:00:34]} Rb3+ {[%emt 0:00:09]} 36. Kc1 {[%emt 0:00:08]} Bf4+ {[%emt 0:00:16]} 37. Rd2 {[%emt 0:00:24]} Rbc3 {[%emt 0:00:09]} 0-1